fUST/lending_fUST_20240721
["ID","MTS","AMOUNT","RATE_DAILY","PERIOD"]
[332816016,1721547040312,-500.9166556,0.00013698,2]
[332816017,1721547040322,-687.36,0.00013698,2]
[332816018,1721547040332,-500.0,0.00013698,2]
[332816019,1721547040341,-500.0,0.00013698,2]
[332816020,1721547040351,-500.0,0.00013698,2]
[332816021,1721547040361,-500.0,0.00013698,2]
[332816022,1721547040371,-1345.24,0.00013698,2]
[332816023,1721547040381,-833.13,0.00013698,2]
[332816024,1721547040391,-500.0,0.00013698,2]
[332816025,1721547040401,-1266.03581356,0.00013698,2]
[332816026,1721547040416,-479.47418644,0.00013698,2]
[332816027,1721547040426,-500.0,0.00013698,2]
[332816028,1721547040436,-512.77449406,0.00013698,2]
[332816029,1721547040446,-500.0,0.00013698,2]
[332816030,1721547040456,-500.0,0.00013698,2]
[332816031,1721547040466,-500.0,0.00013698,2]
[332816032,1721547040477,-500.0,0.00013698,2]
[332816033,1721547040487,-500.0,0.00013698,2]
[332816034,1721547040496,-504.60023495,0.00013698,2]
[332816035,1721547040505,-983.86,0.00013698,2]
[332816036,1721547040515,-747.55,0.00013698,2]
[332816037,1721547040525,-500.0,0.00013698,2]
[332816038,1721547040535,-500.0,0.00013698,2]
[332816039,1721547040544,-2544.91,0.00013698,2]
[332816040,1721547040554,-500.0,0.00013698,2]
[332816041,1721547040563,-500.0,0.00013698,2]
[332816042,1721547040573,-500.0,0.00013698,2]
[332816043,1721547040584,-2408.41,0.00013698,2]
[332816044,1721547040593,-2408.41,0.00013698,2]
[332816045,1721547040603,-2408.41,0.00013698,2]
[332816046,1721547040613,-2408.41,0.00013698,2]
[332816047,1721547040623,-2408.41,0.00013698,2]
[332816048,1721547040632,-2408.41,0.00013698,2]
[332816049,1721547040646,-2408.41,0.00013698,2]
[332816050,1721547040655,-1090.71,0.00013698,2]
[332816051,1721547040665,-2408.41,0.00013698,2]
[332816052,1721547040675,-2408.41,0.00013698,2]
[332816053,1721547040684,-500.0,0.00013698,2]
[332816054,1721547040694,-2408.41,0.00013698,2]
[332816055,1721547040704,-2408.41,0.00013698,2]
[332816056,1721547040714,-500.0,0.00013698,2]
[332816057,1721547040724,-2408.41,0.00013698,2]
[332816058,1721547040734,-2408.41,0.00013698,2]
[332816059,1721547040744,-2408.41,0.00013698,2]
[332816060,1721547040754,-500.0,0.00013698,2]
[332816061,1721547040764,-2408.41,0.00013698,2]
[332816062,1721547040774,-2408.41,0.00013698,2]
[332816063,1721547040784,-2408.41,0.00013698,2]
[332816064,1721547040796,-2408.41,0.00013698,2]
[332816065,1721547040811,-2408.41,0.00013698,2]
[332816066,1721547040821,-2408.41,0.00013698,2]
[332816067,1721547040833,-564.54,0.00013698,2]
[332816068,1721547040843,-2408.41,0.00013698,2]
[332816069,1721547040853,-2408.41,0.00013698,2]
[332816070,1721547040864,-2408.41,0.00013698,2]
[332816071,1721547040874,-2408.62,0.00013698,2]
[332816072,1721547040886,-551.18,0.00013698,2]
[332816073,1721547040896,-500.0,0.00013698,2]
[332816074,1721547040906,-500.0,0.00013698,2]
[332816075,1721547040916,-3680.41,0.00013698,2]
[332816076,1721547040926,-500.0,0.00013698,2]
[332816077,1721547040936,-500.0,0.00013698,2]
[332816078,1721547040947,-500.0,0.00013698,2]
[332816079,1721547040959,-500.0,0.00013698,2]
[332816080,1721547040970,-1989.12,0.00013698,2]
[332816081,1721547040983,-758.88,0.00013698,2]
[332816082,1721547040993,-506.09714435,0.00013698,2]
[332816083,1721547041003,-500.0,0.00013698,2]
[332816084,1721547041014,-500.0,0.00013698,2]
[332816085,1721547041025,-500.0,0.00013698,2]
[332816086,1721547041036,-691.62,0.00013698,2]
[332816087,1721547041045,-500.0,0.00013698,2]
[332816088,1721547041055,-500.0,0.00013698,2]
[332816089,1721547041066,-500.0,0.00013698,2]
[332816090,1721547041077,-500.0,0.00013698,2]
[332816091,1721547041087,-500.0,0.00013698,2]
[332816092,1721547041098,-500.0,0.00013698,2]
[332816093,1721547041110,-501.53767902,0.00013698,2]
[332816094,1721547041120,-500.0,0.00013698,2]
[332816095,1721547041130,-500.0,0.00013698,2]
[332816096,1721547041140,-508.74971259,0.00013698,2]
[332816097,1721547041149,-561.74,0.00013698,2]
[332816098,1721547041159,-500.0,0.00013698,2]
[332816099,1721547041169,-500.0,0.00013698,2]
[332816100,1721547041179,-951.64,0.00013698,2]
[332816101,1721547041188,-569.12686434,0.00013698,2]
[332816102,1721547041198,-500.0,0.00013698,2]
[332816103,1721547041207,-500.0,0.00013698,2]
[332816104,1721547041217,-601.78,0.00013698,2]
[332816105,1721547041227,-500.0,0.00013698,2]
[332816106,1721547041236,-500.0,0.00013698,2]
[332816107,1721547041246,-500.0,0.00013698,2]
[332816108,1721547041256,-500.0,0.00013698,2]
[332816109,1721547041266,-751.37,0.00013698,2]
[332816110,1721547041276,-500.0,0.00013698,2]
[332816111,1721547041285,-507.8,0.00013698,2]
[332816112,1721547041296,-500.0,0.00013698,2]
[332816113,1721547041515,-740.91,0.00013698,2]
[332816114,1721547041525,-500.0,0.00013698,2]
[332816115,1721547041535,-500.0,0.00013698,2]
[332816116,1721547041545,-500.0,0.00013698,2]
[332816117,1721547041555,-514.65947012,0.00013698,2]
[332816118,1721547041565,-500.99256661,0.00013698,2]
[332816119,1721547041574,-500.0,0.00013698,2]
[332816120,1721547041584,-519.75,0.00013698,2]
[332816121,1721547041594,-500.0,0.00013698,2]
[332816122,1721547041604,-500.0,0.00013698,2]
[332816123,1721547041613,-508.16,0.00013698,2]
[332816124,1721547041623,-504.51992747,0.00013698,2]
[332816125,1721547041632,-500.0,0.00013698,2]
[332816126,1721547041642,-500.0,0.00013698,2]
[332816127,1721547041652,-771.31,0.00013698,2]
[332816128,1721547041662,-500.0,0.00013698,2]
[332816129,1721547041671,-500.0,0.00013698,2]
[332816130,1721547041681,-500.0,0.00013698,2]
[332816131,1721547041691,-500.0,0.00013698,2]
[332816132,1721547041700,-1668.56,0.00013698,2]
[332816133,1721547041710,-500.0,0.00013698,2]
[332816134,1721547041720,-500.0,0.00013698,2]
[332816135,1721547041733,-500.0,0.00013698,2]
[332816136,1721547041743,-2587.76,0.00013698,2]
[332816137,1721547041753,-500.0,0.00013698,2]
[332816138,1721547041763,-500.0,0.00013698,2]
[332816139,1721547041772,-500.0,0.00013698,2]
[332816140,1721547041782,-1755.46,0.00013698,2]
[332816141,1721547041792,-582.52,0.00013698,2]
[332816142,1721547041804,-527.34,0.00013698,2]
[332816143,1721547041815,-500.0,0.00013698,2]
[332816144,1721547041824,-500.0,0.00013698,2]
[332816145,1721547041833,-597.87,0.00013698,2]
[332816146,1721547041843,-500.0,0.00013698,2]
[332816147,1721547041854,-1650.21,0.00013698,2]
[332816148,1721547041863,-500.0,0.00013698,2]
[332816149,1721547041873,-692.46,0.00013698,2]
[332816150,1721547041883,-500.0,0.00013698,2]
[332816151,1721547041893,-500.0,0.00013698,2]
[332816152,1721547041903,-500.0,0.00013698,2]
[332816153,1721547041912,-500.0,0.00013698,2]
[332816154,1721547041921,-500.0,0.00013698,2]
[332816155,1721547041931,-500.0,0.00013698,2]
[332816156,1721547041940,-785.65,0.00013698,2]
[332816157,1721547041950,-500.0,0.00013698,2]
[332816158,1721547041959,-500.0,0.00013698,2]
[332816159,1721547041969,-500.0,0.00013698,2]
[332816160,1721547041981,-185.12499059,0.00013698,2]
[332816161,1721547041991,-500.0,0.00013698,2]
[332816162,1721547042000,-500.0,0.00013698,2]
[332816163,1721547042010,-500.0,0.00013698,2]
[332816164,1721547042019,-500.0,0.00013698,2]
[332816165,1721547042029,-500.0,0.00013698,2]
[332816166,1721547042038,-500.0,0.00013698,2]
[332816167,1721547042047,-500.0,0.00013698,2]
[332816168,1721547042057,-833.85,0.00013698,2]
[332816169,1721547042067,-500.0,0.00013698,2]
[332816170,1721547042077,-500.0,0.00013698,2]
[332816171,1721547042087,-500.0,0.00013698,2]
[332816172,1721547042096,-500.0,0.00013698,2]
[332816173,1721547042105,-1153.65,0.00013698,2]
[332816174,1721547042115,-500.0,0.00013698,2]
[332816175,1721547042125,-522.82,0.00013698,2]
[332816176,1721547042135,-370.30396725,0.00013698,2]
[332816177,1721547042145,-500.0,0.00013698,2]
[332816178,1721547042154,-500.0,0.00013698,2]
[332816179,1721547042164,-518.4907421,0.00013698,2]
[332816180,1721547042173,-500.0,0.00013698,2]
[332816181,1721547042183,-500.0,0.00013698,2]
[332816182,1721547042192,-1067.15,0.00013698,2]
[332816183,1721547042202,-500.0,0.00013698,2]
[332816184,1721547042211,-1533.95,0.00013698,2]
[332816185,1721547042221,-500.0,0.00013698,2]
[332816186,1721547042232,-500.0,0.00013698,2]
[332816187,1721547042241,-500.0,0.00013698,2]
[332816188,1721547042250,-500.0,0.00013698,2]
[332816189,1721547042260,-500.0,0.00013698,2]
[332816190,1721547042270,-500.0,0.00013698,2]
[332816191,1721547042279,-500.0,0.00013698,2]
[332816192,1721547042289,-500.0,0.00013698,2]
[332816193,1721547042298,-500.0,0.00013698,2]
[332816194,1721547042307,-500.0,0.00013698,2]
[332816195,1721547042317,-500.0,0.00013698,2]
[332816196,1721547042326,-500.0,0.00013698,2]
[332816197,1721547042336,-782.8,0.00013698,2]
[332816198,1721547042346,-502.72762829,0.00013698,2]
[332816199,1721547042355,-500.0,0.00013698,2]
[332816200,1721547042364,-500.0,0.00013698,2]
[332816202,1721547042375,-518.29137302,0.00013698,2]
[332816203,1721547042384,-500.0,0.00013698,2]
[332816205,1721547042394,-500.0,0.00013698,2]
[332816206,1721547042403,-500.0,0.00013698,2]
[332816207,1721547042412,-500.0,0.00013698,2]
[332816208,1721547042422,-500.0,0.00013698,2]
[332816209,1721547042432,-500.0,0.00013698,2]
[332816210,1721547042441,-837.32,0.00013698,2]
[332816211,1721547042452,-646.91,0.00013698,2]
[332816212,1721547042461,-742.87,0.00013698,2]
[332816213,1721547042471,-1500.91,0.00013698,2]
[332816214,1721547042483,-510.41194972,0.00013698,2]
[332816215,1721547042493,-1806.72,0.00013698,2]
[332816216,1721547042502,-1192.67,0.00013698,2]
[332816217,1721547042513,-500.0,0.00013698,2]
[332816218,1721547042523,-500.0,0.00013698,2]
[332816220,1721547042533,-500.0,0.00013698,2]
[332816221,1721547042542,-1053.18,0.00013698,2]
[332816223,1721547042551,-500.0,0.00013698,2]
[332816224,1721547042561,-500.0,0.00013698,2]
[332816225,1721547042571,-1818.64,0.00013698,2]
[332816226,1721547042580,-500.0,0.00013698,2]
[332816227,1721547042590,-500.0,0.00013698,2]
[332816228,1721547042599,-1428.78,0.00013698,2]
[332816230,1721547042610,-548.78,0.00013698,2]
[332816231,1721547042619,-869.18,0.00013698,2]
[332816232,1721547042630,-500.0,0.00013698,2]
[332816233,1721547042640,-516.03261185,0.00013698,2]
[332816234,1721547042650,-500.0,0.00013698,2]
[332816235,1721547042659,-500.0,0.00013698,2]
[332816236,1721547042668,-500.0,0.00013698,2]
[332816238,1721547042678,-547.4,0.00013698,2]
[332816240,1721547042688,-500.0,0.00013698,2]
[332816242,1721547042697,-3300.42,0.00013698,2]
[332816244,1721547042707,-8411.66,0.00013698,2]
[332816246,1721547042717,-500.0,0.00013698,2]
[332816248,1721547042734,-500.0,0.00013698,2]
[332816250,1721547042744,-500.0,0.00013698,2]
[332816252,1721547042753,-500.0,0.00013698,2]
[332816254,1721547042763,-500.0,0.00013698,2]
[332816256,1721547042772,-500.0,0.00013698,2]
[332816258,1721547042783,-500.0,0.00013698,2]
[332816260,1721547042792,-962.3,0.00013698,2]
[332816262,1721547042804,-500.0,0.00013698,2]
[332816264,1721547042814,-500.0,0.00013698,2]
[332816266,1721547042824,-896.9,0.00013698,2]
[332816268,1721547042834,-500.0,0.00013698,2]
[332816270,1721547042844,-589.04525398,0.00013698,2]
[332816272,1721547042854,-500.0,0.00013698,2]
[332816274,1721547042863,-500.0,0.00013698,2]
[332816276,1721547042873,-500.0,0.00013698,2]
[332816278,1721547042886,-500.0,0.00013698,2]
[332816280,1721547042896,-500.0,0.00013698,2]
[332816282,1721547042906,-500.0,0.00013698,2]
[332816284,1721547042915,-500.0,0.00013698,2]
[332816285,1721547042925,-606.30003501,0.00013698,2]
[332816287,1721547042935,-500.0,0.00013698,2]
[332816288,1721547042945,-500.0,0.00013698,2]
[332816289,1721547042955,-500.0,0.00013698,2]
[332816290,1721547042965,-1194.62,0.00013698,2]
[332816291,1721547042976,-2331.01,0.00013698,2]
[332816292,1721547042987,-548.33,0.00013698,2]
[332816293,1721547042997,-500.0,0.00013698,2]
[332816294,1721547043007,-500.0,0.00013698,2]
[332816295,1721547043016,-500.0,0.00013698,2]
[332816296,1721547043026,-2064.03,0.00013698,2]
[332816297,1721547043035,-500.0,0.00013698,2]
[332816298,1721547043045,-651.18,0.00013698,2]
[332816299,1721547043054,-573.50308911,0.00013698,2]
[332816300,1721547043064,-500.0,0.00013698,2]
[332816301,1721547043073,-500.0,0.00013698,2]
[332816302,1721547043083,-5156.89,0.00013698,2]
[332816303,1721547043093,-890.37,0.00013698,2]
[332816304,1721547043103,-2004.97,0.00013698,2]
[332816305,1721547043112,-500.0,0.00013698,2]
[332816306,1721547043121,-500.0,0.00013698,2]
[332816307,1721547043131,-500.0,0.00013698,2]
[332816308,1721547043141,-500.0,0.00013698,2]
[332816309,1721547043150,-500.0,0.00013698,2]
[332816310,1721547043160,-500.0,0.00013698,2]
[332816311,1721547043170,-177.82958708,0.00013698,2]
[332816312,1721547043180,-500.0,0.00013698,2]
[332816313,1721547043189,-567.48,0.00013698,2]
[332816314,1721547043199,-500.0,0.00013698,2]
[332816315,1721547043208,-512.34617721,0.00013698,2]
[332816316,1721547043218,-593.52,0.00013698,2]
[332816317,1721547043230,-500.0,0.00013698,2]
[332816318,1721547043242,-500.0,0.00013698,2]
[332816319,1721547043251,-2743.02,0.00013698,2]
[332816320,1721547043260,-1859.64,0.00013698,2]
[332816321,1721547043270,-1132.65,0.00013698,2]
[332816322,1721547043279,-500.0,0.00013698,2]
[332816323,1721547043288,-1861.47,0.00013698,2]
[332816324,1721547043298,-502.40607117,0.00013698,2]
[332816325,1721547043308,-532.07,0.00013698,2]
[332816326,1721547043317,-500.0,0.00013698,2]
[332816327,1721547043327,-801.22,0.00013698,2]
[332816329,1721547043337,-500.0,0.00013698,2]
[332816331,1721547043347,-546.73,0.00013698,2]
[332816332,1721547043357,-1746.95,0.00013698,2]
[332816333,1721547043367,-500.0,0.00013698,2]
[332816334,1721547043376,-500.0,0.00013698,2]
[332816335,1721547043385,-1362.57,0.00013698,2]
[332816336,1721547043396,-500.0,0.00013698,2]
[332816337,1721547043405,-500.0,0.00013698,2]
[332816338,1721547043415,-500.0,0.00013698,2]
[332816339,1721547043425,-681.63,0.00013698,2]
[332816340,1721547043435,-500.0,0.00013698,2]
[332816341,1721547043445,-717.23,0.00013698,2]
[332816342,1721547043455,-500.0,0.00013698,2]
[332816343,1721547043465,-500.0,0.00013698,2]
[332816344,1721547043475,-500.0,0.00013698,2]
[332816345,1721547043485,-609.34,0.00013698,2]
[332816346,1721547043495,-501.5293362,0.00013698,2]
[332816347,1721547043504,-1295.13,0.00013698,2]
[332816348,1721547043513,-3311.61,0.00013698,2]
[332816349,1721547043523,-500.0,0.00013698,2]
[332816350,1721547043533,-500.0,0.00013698,2]
[332816351,1721547043543,-598.88,0.00013698,2]
[332816352,1721547043552,-17197.95,0.00013698,2]
[332816353,1721547043561,-500.0,0.00013698,2]
[332816354,1721547043571,-500.0,0.00013698,2]
[332816355,1721547043580,-1599.99,0.00013698,2]
[332816356,1721547043590,-869.26,0.00013698,2]
[332816357,1721547043599,-2192.03,0.00013698,2]
[332816358,1721547043608,-500.0,0.00013698,2]
[332816359,1721547043618,-726.32,0.00013698,2]
[332816360,1721547043628,-500.0,0.00013698,2]
[332816361,1721547043637,-500.0,0.00013698,2]
[332816362,1721547043647,-500.0,0.00013698,2]
[332816363,1721547043656,-500.0,0.00013698,2]
[332816364,1721547043665,-2539.46,0.00013698,2]
[332816365,1721547043675,-5033.99,0.00013698,2]
[332816366,1721547043684,-500.0,0.00013698,2]
[332816367,1721547043694,-573.11,0.00013698,2]
[332816368,1721547043704,-500.0,0.00013698,2]
[332816369,1721547043713,-587.53,0.00013698,2]
[332816370,1721547043723,-250.37485436,0.00013698,2]
[332816371,1721547045172,-257.66514564,0.00013698,2]
[332816372,1721547045182,-500.0,0.00013698,2]
[332816373,1721547045190,-2678.82,0.00013698,2]
[332816374,1721547045200,-786.77,0.00013698,2]
[332816375,1721547045209,-2954.16,0.00013698,2]
[332816376,1721547045219,-500.0,0.00013698,2]
[332816377,1721547045230,-500.0,0.00013698,2]
[332816378,1721547045239,-500.0,0.00013698,2]
[332816379,1721547045249,-398.60897865,0.00013698,2]
[332816385,1721547047765,-273.37336231,9.9e-05,2]
[332816386,1721547047774,-456.44933875,0.00012216,2]
[332816387,1721547047902,-69.95701798,0.00012216,2]
[332816388,1721547047912,-101.39102135,0.00013698,2]
[332816389,1721547047921,-500.0,0.00013698,2]
[332816390,1721547047930,-806.13696067,0.00013698,2]
[332816391,1721547047943,-760.38303933,0.00013698,2]
[332816392,1721547047952,-2932.41,0.00013698,2]
[332816393,1721547048145,-500.0,0.00013698,2]
[332816394,1721547048156,-500.0,0.00013698,2]
[332816395,1721547048166,-500.0,0.00013698,2]
[332816396,1721547048176,-500.0,0.00013698,2]
[332816397,1721547048186,-7537.32,0.00013698,2]
[332816398,1721547048196,-500.0,0.00013698,2]
[332816399,1721547048207,-999.05,0.00013698,2]
[332816400,1721547048217,-1395.51738117,0.00013698,2]
[332816401,1721547057633,166.63,0.000224,31]
[332816402,1721547148114,21251.03620833,0.00024,60]
[332816405,1721547267730,-273.37336231,9.801e-05,2]
[332816406,1721547267752,-206.24082542,9.999e-05,2]
[332816407,1721547267774,-154.79103211,9.999e-05,2]
[332816408,1721547267797,-167.73813035,9.999e-05,2]
[332816409,1721547267819,-319.21055597,9.999e-05,2]
[332816410,1721547267841,-503.86704701,9.999e-05,2]
[332816411,1721547267863,-300.0,0.00010958,2]
[332816412,1721547267887,-300.0,0.00010958,2]
[332816413,1721547267911,-355.86,0.00010959,2]
[332816414,1721547267935,-316.41,0.00010959,2]
[332816415,1721547267958,-263.67,0.00010959,2]
[332816416,1721547267981,-219.73,0.00010959,2]
[332816417,1721547268004,-183.11,0.00010959,2]
[332816418,1721547268026,-152.59,0.00010959,2]
[332816419,1721547268049,-762.96,0.00010959,2]
[332816420,1721547268072,-196.0344217,0.00011702,2]
[332816421,1721547268095,-420.0,0.00012042,2]
[332816422,1721547268119,-420.0,0.00012054,2]
[332816423,1721547268141,-170.716987,0.00012396,2]
[332816424,1721547268165,-170.716987,0.00012557,2]
[332816425,1721547268188,-170.716987,0.00012719,2]
[332816426,1721547268212,-170.716987,0.0001288,2]
[332816427,1721547268237,-170.716987,0.00013042,2]
[332816428,1721547268260,-180.0,0.00013259,2]
[332816429,1721547268285,-435.64825952,0.00013598,2]
[332816430,1721547268310,-1162.60253126,0.00013598,2]
[332816431,1721547268337,-221955.768903,0.00013688,2]
[332816432,1721547268362,-44391.1537805,0.0001369,2]
[332816433,1721547268385,-303.97261883,0.00013698,2]
[332816434,1721547268408,-553.37,0.00013698,2]
[332816435,1721547268432,-501.12268419,0.00013698,2]
[332816436,1721547268453,-507.09727474,0.00013698,2]
[332816437,1721547268475,-500.0,0.00013698,2]
[332816438,1721547268500,-500.0,0.00013698,2]
[332816439,1721547268524,-500.0,0.00013698,2]
[332816440,1721547268547,-500.0,0.00013698,2]
[332816441,1721547268572,-1004.52,0.00013698,2]
[332816442,1721547268596,-572.25,0.00013698,2]
[332816443,1721547268619,-500.0,0.00013698,2]
[332816444,1721547268641,-500.0,0.00013698,2]
[332816445,1721547268665,-1319.08,0.00013698,2]
[332816446,1721547268689,-500.0,0.00013698,2]
[332816447,1721547268711,-500.0,0.00013698,2]
[332816448,1721547268742,-500.0,0.00013698,2]
[332816449,1721547268770,-501.3127213,0.00013698,2]
[332816450,1721547268803,-500.0,0.00013698,2]
[332816451,1721547268835,-628.44,0.00013698,2]
[332816452,1721547268863,-500.0,0.00013698,2]
[332816453,1721547268896,-509.64564007,0.00013698,2]
[332816454,1721547268924,-1194.74,0.00013698,2]
[332816455,1721547268954,-500.0,0.00013698,2]
[332816456,1721547268984,-810.64,0.00013698,2]
[332816457,1721547269016,-500.0,0.00013698,2]
[332816458,1721547269044,-946.93,0.00013698,2]
[332816459,1721547269071,-500.0,0.00013698,2]
[332816460,1721547269100,-500.0,0.00013698,2]
[332816461,1721547269127,-500.0,0.00013698,2]
[332816462,1721547269155,-601.49,0.00013698,2]
[332816463,1721547269180,-500.0,0.00013698,2]
[332816464,1721547269208,-500.0,0.00013698,2]
[332816465,1721547269239,-500.0,0.00013698,2]
[332816466,1721547269270,-2006.22,0.00013698,2]
[332816467,1721547269301,-500.0,0.00013698,2]
[332816468,1721547269328,-500.0,0.00013698,2]
[332816469,1721547269354,-500.0,0.00013698,2]
[332816470,1721547269381,-500.0,0.00013698,2]
[332816471,1721547269412,-517.81637955,0.00013698,2]
[332816472,1721547269440,-500.0,0.00013698,2]
[332816473,1721547269468,-844.88,0.00013698,2]
[332816474,1721547269496,-500.0,0.00013698,2]
[332816475,1721547269523,-500.0,0.00013698,2]
[332816476,1721547269548,-509.64564007,0.00013698,2]
[332816477,1721547269573,-500.0,0.00013698,2]
[332816478,1721547269598,-1041.28,0.00013698,2]
[332816479,1721547269626,-500.0,0.00013698,2]
[332816480,1721547269652,-502.64555205,0.00013698,2]
[332816481,1721547269678,-2144.59,0.00013698,2]
[332816482,1721547269704,-1517.59,0.00013698,2]
[332816483,1721547269730,-1030.72,0.00013698,2]
[332816484,1721547269756,-500.0,0.00013698,2]
[332816485,1721547269783,-500.0,0.00013698,2]
[332816486,1721547269812,-500.0,0.00013698,2]
[332816487,1721547269841,-500.0,0.00013698,2]
[332816488,1721547269869,-500.0,0.00013698,2]
[332816489,1721547269899,-500.0,0.00013698,2]
[332816490,1721547269927,-500.0,0.00013698,2]
[332816491,1721547269955,-500.0,0.00013698,2]
[332816492,1721547269983,-500.0,0.00013698,2]
[332816493,1721547270011,-500.0,0.00013698,2]
[332816494,1721547270039,-500.0,0.00013698,2]
[332816495,1721547270072,-500.0,0.00013698,2]
[332816496,1721547270098,-500.0,0.00013698,2]
[332816497,1721547270127,-500.0,0.00013698,2]
[332816498,1721547270158,-500.0,0.00013698,2]
[332816499,1721547270189,-500.0,0.00013698,2]
[332816500,1721547270218,-560.78,0.00013698,2]
[332816501,1721547270247,-500.0,0.00013698,2]
[332816502,1721547270274,-500.0,0.00013698,2]
[332816503,1721547270301,-500.0,0.00013698,2]
[332816504,1721547270328,-501.76180974,0.00013698,2]
[332816505,1721547270356,-500.0,0.00013698,2]
[332816506,1721547270382,-500.0,0.00013698,2]
[332816507,1721547270412,-500.0,0.00013698,2]
[332816508,1721547270439,-210.57611742,0.00013698,2]
[332816509,1721547270467,-419.1088453,0.00013698,2]
[332816510,1721547270497,-500.0,0.00013698,2]
[332816511,1721547270525,-500.0,0.00013698,2]
[332816512,1721547270554,-570.48,0.00013698,2]
[332816513,1721547270581,-811.33,0.00013698,2]
[332816514,1721547270608,-500.0,0.00013698,2]
[332816515,1721547270635,-500.0,0.00013698,2]
[332816516,1721547270662,-2324.94,0.00013698,2]
[332816517,1721547270688,-500.0,0.00013698,2]
[332816518,1721547270714,-500.0,0.00013698,2]
[332816519,1721547270740,-650.53,0.00013698,2]
[332816520,1721547270765,-500.0,0.00013698,2]
[332816521,1721547270791,-507.95993019,0.00013698,2]
[332816522,1721547270818,-500.0,0.00013698,2]
[332816523,1721547270846,-500.0,0.00013698,2]
[332816524,1721547270874,-2463.16,0.00013698,2]
[332816525,1721547270904,-500.0,0.00013698,2]
[332816526,1721547270930,-500.0,0.00013698,2]
[332816527,1721547270957,-500.0,0.00013698,2]
[332816528,1721547270986,-1611.33,0.00013698,2]
[332816529,1721547271013,-500.0,0.00013698,2]
[332816530,1721547271039,-500.0,0.00013698,2]
[332816531,1721547271066,-500.0,0.00013698,2]
[332816532,1721547271092,-500.0,0.00013698,2]
[332816533,1721547271118,-798.41,0.00013698,2]
[332816534,1721547271147,-500.0,0.00013698,2]
[332816535,1721547271173,-500.0,0.00013698,2]
[332816536,1721547271198,-1921.43,0.00013698,2]
[332816537,1721547271223,-500.0,0.00013698,2]
[332816538,1721547271249,-809.17,0.00013698,2]
[332816539,1721547271276,-500.0,0.00013698,2]
[332816540,1721547271303,-502.87005819,0.00013698,2]
[332816541,1721547271329,-653.5,0.00013698,2]
[332816542,1721547271354,-500.0,0.00013698,2]
[332816543,1721547271379,-705.04,0.00013698,2]
[332816544,1721547271405,-1862.85,0.00013698,2]
[332816545,1721547271430,-500.0,0.00013698,2]
[332816546,1721547271458,-656.06,0.00013698,2]
[332816547,1721547271812,-500.0,0.00013698,2]
[332816548,1721547271837,-500.0,0.00013698,2]
[332816549,1721547271860,-500.62591314,0.00013698,2]
[332816550,1721547271885,-1757.01,0.00013698,2]
[332816551,1721547271909,-1289.19,0.00013698,2]
[332816552,1721547271935,-500.0,0.00013698,2]
[332816553,1721547271959,-504.60023495,0.00013698,2]
[332816554,1721547272007,-500.0,0.00013698,2]